[Event "Early-Titled-Tuesday-Blitz-February-13-2024"]
[Site "Chess.com"]
[Date "2024.02.13"]
[Round "8"]
[White "Inepton_Fermion"]
[Black "karinachess1"]
[Result "0-1"]
[WhiteElo "2410"]
[BlackElo "2659"]
[TimeControl "180+1"]
[EndTime "9:30:13 PST"]
[Termination "karinachess1 won by resignation"]

1. e4 {[%clk 0:03:00.9]} 1... e5 {[%clk 0:02:58.3]} 2. Nf3 {[%clk 0:03:00.9]}
2... Nc6 {[%clk 0:02:59]} 3. Bc4 {[%clk 0:03:01.3]} 3... Nf6 {[%clk 0:02:58.5]}
4. d3 {[%clk 0:02:57.7]} 4... h6 {[%clk 0:02:57.2]} 5. c3 {[%clk 0:02:52.5]}
5... d6 {[%clk 0:02:57.6]} 6. Nbd2 {[%clk 0:02:47.6]} 6... g5 {[%clk 0:02:57.6]}
7. Nf1 {[%clk 0:02:47.3]} 7... Bg7 {[%clk 0:02:56.9]} 8. Ng3 {[%clk 0:02:45.5]}
8... Be6 {[%clk 0:02:54.6]} 9. Bxe6 {[%clk 0:02:44.3]} 9... fxe6 {[%clk
0:02:55.5]} 10. Qb3 {[%clk 0:02:44.5]} 10... Qc8 {[%clk 0:02:51.4]} 11. h3
{[%clk 0:02:22.9]} 11... O-O {[%clk 0:02:45.4]} 12. Be3 {[%clk 0:02:19.3]} 12...
b6 {[%clk 0:02:44.4]} 13. O-O-O {[%clk 0:02:18.4]} 13... Qd7 {[%clk 0:02:41.3]}
14. Ne2 {[%clk 0:01:44.6]} 14... d5 {[%clk 0:02:40.4]} 15. Qc2 {[%clk
0:01:34.3]} 15... a5 {[%clk 0:02:32.6]} 16. h4 {[%clk 0:01:28.5]} 16... g4
{[%clk 0:02:32.2]} 17. Nh2 {[%clk 0:01:28.4]} 17... d4 {[%clk 0:02:24.5]} 18.
cxd4 {[%clk 0:01:06.8]} 18... exd4 {[%clk 0:02:25.4]} 19. Bd2 {[%clk 0:01:06.4]}
19... e5 {[%clk 0:02:10.6]} 20. Ng3 {[%clk 0:01:02.5]} 20... Ne7 {[%clk
0:02:08.2]} 21. h5 {[%clk 0:00:58.1]} 21... c5 {[%clk 0:02:08]} 22. Kb1 {[%clk
0:00:54.7]} 22... b5 {[%clk 0:02:08.5]} 23. Qxc5 {[%clk 0:00:49.5]} 23... Rfc8
{[%clk 0:01:58.4]} 24. Qxe5 {[%clk 0:00:41.6]} 24... Nfd5 {[%clk 0:01:58.7]} 25.
Qxg7+ {[%clk 0:00:23.5]} 25... Kxg7 {[%clk 0:01:59.6]} 26. exd5 {[%clk
0:00:23.5]} 26... Nxd5 {[%clk 0:01:57.9]} 27. Nxg4 {[%clk 0:00:23.8]} 27... Qxg4
{[%clk 0:01:57]} 28. Ne4 {[%clk 0:00:23.6]} 28... Qe2 {[%clk 0:01:52.4]} 29. Ka1
{[%clk 0:00:18.4]} 29... Nb4 {[%clk 0:01:47.8]} 30. Rhe1 {[%clk 0:00:17.1]}
30... Nc2+ {[%clk 0:01:46]} 31. Kb1 {[%clk 0:00:15.4]} 31... Nxe1 {[%clk
0:01:46.5]} 0-1

[Event "Early-Titled-Tuesday-Blitz-February-13-2024"]
[Site "Chess.com"]
[Date "2024.02.13"]
[Round "8"]
[White "UK_23"]
[Black "Lady_Nika"]
[Result "0-1"]
[WhiteElo "2361"]
[BlackElo "2587"]
[TimeControl "180+1"]
[EndTime "9:30:16 PST"]
[Termination "Lady_Nika won by checkmate"]

1. e4 {[%clk 0:03:00.6]} 1... e6 {[%clk 0:02:59.2]} 2. d4 {[%clk 0:03:00.5]}
2... d5 {[%clk 0:02:59.6]} 3. e5 {[%clk 0:03:01]} 3... c5 {[%clk 0:02:59.8]} 4.
c3 {[%clk 0:02:59.3]} 4... Nc6 {[%clk 0:03:00.2]} 5. Nf3 {[%clk 0:02:59.3]} 5...
Qb6 {[%clk 0:02:59.5]} 6. Be2 {[%clk 0:02:57.2]} 6... Bd7 {[%clk 0:02:58.2]} 7.
O-O {[%clk 0:02:56.9]} 7... Nge7 {[%clk 0:02:58.3]} 8. dxc5 {[%clk 0:02:54.6]}
8... Qxc5 {[%clk 0:02:58.5]} 9. Be3 {[%clk 0:02:51.4]} 9... Qa5 {[%clk
0:02:58.4]} 10. Re1 {[%clk 0:02:47.1]} 10... Qc7 {[%clk 0:02:51.2]} 11. Bf4
{[%clk 0:02:43.4]} 11... Ng6 {[%clk 0:02:50.8]} 12. Bg3 {[%clk 0:02:43.3]} 12...
h5 {[%clk 0:02:50]} 13. h4 {[%clk 0:02:43.1]} 13... Be7 {[%clk 0:02:49]} 14. Bd3
{[%clk 0:02:43]} 14... Rh6 {[%clk 0:02:45.4]} 15. Nbd2 {[%clk 0:02:39.2]} 15...
O-O-O {[%clk 0:02:45.3]} 16. b4 {[%clk 0:02:39.2]} 16... Rg8 {[%clk 0:02:40.2]}
17. a3 {[%clk 0:02:37.1]} 17... Qd8 {[%clk 0:02:27.3]} 18. c4 {[%clk 0:02:28.3]}
18... Nxh4 {[%clk 0:02:24.9]} 19. c5 {[%clk 0:02:17.3]} 19... Nxf3+ {[%clk
0:02:23.8]} 20. Nxf3 {[%clk 0:02:17]} 20... h4 {[%clk 0:02:23.5]} 21. Bh2 {[%clk
0:02:17.2]} 21... h3 {[%clk 0:02:22.8]} 22. g4 {[%clk 0:02:14.1]} 22... f6
{[%clk 0:02:12.7]} 23. b5 {[%clk 0:02:11.6]} 23... Nxe5 {[%clk 0:02:11.8]} 24.
Nxe5 {[%clk 0:02:09.8]} 24... fxe5 {[%clk 0:02:12]} 25. c6 {[%clk 0:02:02.5]}
25... bxc6 {[%clk 0:02:07.3]} 26. bxc6 {[%clk 0:02:02.9]} 26... Bxc6 {[%clk
0:02:07.6]} 27. Rc1 {[%clk 0:01:57.3]} 27... Qb6 {[%clk 0:02:05.7]} 28. Qa4
{[%clk 0:01:49.7]} 28... Bc5 {[%clk 0:01:53.5]} 29. Rxc5 {[%clk 0:01:31.9]}
29... Qxc5 {[%clk 0:01:50.7]} 30. Ba6+ {[%clk 0:01:21.4]} 30... Kd7 {[%clk
0:01:48.5]} 31. Qd1 {[%clk 0:01:11.4]} 31... Rf6 {[%clk 0:01:46.3]} 32. Qe2
{[%clk 0:01:09.4]} 32... Rgf8 {[%clk 0:01:42.1]} 33. Rf1 {[%clk 0:01:06]} 33...
d4 {[%clk 0:01:38.8]} 34. Qxe5 {[%clk 0:01:00.5]} 34... Qxe5 {[%clk 0:01:35.5]}
35. Bxe5 {[%clk 0:01:01.4]} 35... Rg6 {[%clk 0:01:35.7]} 36. Kh2 {[%clk
0:00:56.3]} 36... Rxg4 {[%clk 0:01:34.6]} 37. Kxh3 {[%clk 0:00:56.9]} 37... Bf3
{[%clk 0:01:31.8]} 38. Bb5+ {[%clk 0:00:52]} 38... Ke7 {[%clk 0:01:31.8]} 39.
Rc1 {[%clk 0:00:51.2]} 39... Rh8# {[%clk 0:01:31.9]} 0-1

[Event "Early-Titled-Tuesday-Blitz-February-13-2024"]
[Site "Chess.com"]
[Date "2024.02.13"]
[Round "8"]
[White "Alexander_Donchenko"]
[Black "pifion"]
[Result "1-0"]
[WhiteElo "2916"]
[BlackElo "2675"]
[TimeControl "180+1"]
[EndTime "9:30:18 PST"]
[Termination "Alexander_Donchenko won by resignation"]

1. Nf3 {[%clk 0:02:55.5]} 1... d5 {[%clk 0:02:59.4]} 2. c4 {[%clk 0:02:55.7]}
2... e6 {[%clk 0:02:59.4]} 3. b3 {[%clk 0:02:54.3]} 3... Nf6 {[%clk 0:02:58.4]}
4. Bb2 {[%clk 0:02:54.3]} 4... b6 {[%clk 0:02:58.2]} 5. cxd5 {[%clk 0:02:53.7]}
5... exd5 {[%clk 0:02:55.9]} 6. g3 {[%clk 0:02:53.7]} 6... Bb7 {[%clk
0:02:55.8]} 7. Bg2 {[%clk 0:02:54]} 7... Bd6 {[%clk 0:02:55.8]} 8. O-O {[%clk
0:02:52]} 8... O-O {[%clk 0:02:55.2]} 9. Nc3 {[%clk 0:02:51.4]} 9... a6 {[%clk
0:02:54.5]} 10. d4 {[%clk 0:02:50.6]} 10... Nbd7 {[%clk 0:02:54.5]} 11. Qc2
{[%clk 0:02:49.5]} 11... Re8 {[%clk 0:02:54.5]} 12. Rfd1 {[%clk 0:02:48.1]}
12... b5 {[%clk 0:02:48.6]} 13. a4 {[%clk 0:02:42.6]} 13... b4 {[%clk
0:02:47.5]} 14. Nb1 {[%clk 0:02:42.2]} 14... a5 {[%clk 0:02:39.5]} 15. e3 {[%clk
0:02:40.5]} 15... Ne4 {[%clk 0:02:35.3]} 16. Nbd2 {[%clk 0:02:39.8]} 16... f5
{[%clk 0:02:34.1]} 17. Rac1 {[%clk 0:02:39]} 17... Rc8 {[%clk 0:02:30.7]} 18.
Bh3 {[%clk 0:02:36.8]} 18... Rf8 {[%clk 0:02:12.3]} 19. Nxe4 {[%clk 0:02:35.1]}
19... fxe4 {[%clk 0:02:12.1]} 20. Ne5 {[%clk 0:02:34.8]} 20... Bxe5 {[%clk
0:02:10.7]} 21. dxe5 {[%clk 0:02:34.4]} 21... Qe7 {[%clk 0:02:05.9]} 22. e6
{[%clk 0:02:22.4]} 22... Nf6 {[%clk 0:01:58.2]} 23. Qc5 {[%clk 0:02:19.6]} 23...
Rfe8 {[%clk 0:01:42.3]} 24. Qxe7 {[%clk 0:02:15.8]} 24... Rxe7 {[%clk 0:01:42]}
25. Rc5 {[%clk 0:02:16.7]} 25... Ra8 {[%clk 0:01:36.2]} 26. Be5 {[%clk
0:02:12.8]} 26... Ne8 {[%clk 0:01:33.2]} 27. Rdxd5 {[%clk 0:02:03.1]} 27... Bxd5
{[%clk 0:01:32.8]} 28. Rxd5 {[%clk 0:02:04]} 28... Kf8 {[%clk 0:01:18.9]} 29.
Bd4 {[%clk 0:01:51.5]} 29... Nf6 {[%clk 0:01:14.7]} 30. Rb5 {[%clk 0:01:45.8]}
30... Ree8 {[%clk 0:01:09.2]} 31. Rb7 {[%clk 0:01:39.9]} 31... Nd5 {[%clk
0:01:08.6]} 32. Bf5 {[%clk 0:01:34.8]} 32... Ra6 {[%clk 0:01:06.2]} 33. Bxe4
{[%clk 0:01:33.3]} 33... Nc3 {[%clk 0:00:59.1]} 34. Bxh7 {[%clk 0:01:23.6]}
34... Ne2+ {[%clk 0:00:57.5]} 35. Kg2 {[%clk 0:01:23.3]} 35... Nxd4 {[%clk
0:00:58.1]} 36. exd4 {[%clk 0:01:23]} 36... Raxe6 {[%clk 0:00:58.7]} 37. Rxc7
{[%clk 0:01:21.8]} 37... R8e7 {[%clk 0:00:57.8]} 38. Rc8+ {[%clk 0:01:20.2]}
38... Kf7 {[%clk 0:00:57.5]} 39. Bg8+ {[%clk 0:01:19.5]} 39... Kf6 {[%clk
0:00:58]} 40. Bxe6 {[%clk 0:01:19.6]} 40... Rxe6 {[%clk 0:00:58.6]} 41. Ra8
{[%clk 0:01:18.5]} 1-0

[Event "Early-Titled-Tuesday-Blitz-February-13-2024"]
[Site "Chess.com"]
[Date "2024.02.13"]
[Round "8"]
[White "Flaccidmoves"]
[Black "MikeSailer"]
[Result "1-0"]
[WhiteElo "2434"]
[BlackElo "2193"]
[TimeControl "180+1"]
[EndTime "9:30:21 PST"]
[Termination "Flaccidmoves won on time"]

1. Nf3 {[%clk 0:03:00.9]} 1... d5 {[%clk 0:02:58.9]} 2. c4 {[%clk 0:03:01.5]}
2... e6 {[%clk 0:02:50.8]} 3. e3 {[%clk 0:03:01.6]} 3... c5 {[%clk 0:02:47.5]}
4. cxd5 {[%clk 0:02:59]} 4... exd5 {[%clk 0:02:47.6]} 5. d4 {[%clk 0:02:59.2]}
5... Nc6 {[%clk 0:02:45.2]} 6. Nc3 {[%clk 0:02:56.7]} 6... Nf6 {[%clk
0:02:45.3]} 7. Bb5 {[%clk 0:02:53.1]} 7... c4 {[%clk 0:02:32.6]} 8. O-O {[%clk
0:02:49.5]} 8... Bd6 {[%clk 0:02:26.8]} 9. Ne5 {[%clk 0:02:44.3]} 9... Qc7
{[%clk 0:02:12.1]} 10. f4 {[%clk 0:02:42.6]} 10... O-O {[%clk 0:02:08.8]} 11.
Bd2 {[%clk 0:02:35.6]} 11... Bf5 {[%clk 0:01:57.4]} 12. Qf3 {[%clk 0:02:32.3]}
12... Bd3 {[%clk 0:01:54]} 13. Rfe1 {[%clk 0:02:23.4]} 13... Bxe5 {[%clk
0:01:51]} 14. fxe5 {[%clk 0:02:23.1]} 14... Ne4 {[%clk 0:01:49]} 15. Rad1 {[%clk
0:02:02.6]} 15... a6 {[%clk 0:01:36.3]} 16. Nxd5 {[%clk 0:02:00.5]} 16... Qd8
{[%clk 0:01:23.3]} 17. Bxc6 {[%clk 0:02:00.3]} 17... bxc6 {[%clk 0:01:23.4]} 18.
Nc3 {[%clk 0:02:00.5]} 18... Nxc3 {[%clk 0:01:14.5]} 19. Bxc3 {[%clk 0:02:01.4]}
19... Rc8 {[%clk 0:00:42.5]} 20. e4 {[%clk 0:02:00.5]} 20... Qe7 {[%clk
0:00:37.6]} 21. d5 {[%clk 0:01:57.8]} 21... cxd5 {[%clk 0:00:16.7]} 22. exd5
{[%clk 0:01:57.5]} 22... Qc5+ {[%clk 0:00:14.6]} 23. Kh1 {[%clk 0:01:57.4]}
23... Rcd8 {[%clk 0:00:11.7]} 24. d6 {[%clk 0:01:53.9]} 24... f6 {[%clk
0:00:10.4]} 25. exf6 {[%clk 0:01:47.9]} 25... Rxd6 {[%clk 0:00:10]} 26. fxg7
{[%clk 0:01:44.1]} 1-0

[Event "Early-Titled-Tuesday-Blitz-February-13-2024"]
[Site "Chess.com"]
[Date "2024.02.13"]
[Round "8"]
[White "ChainedDowntohell"]
[Black "inagreV"]
[Result "1-0"]
[WhiteElo "2543"]
[BlackElo "2357"]
[TimeControl "180+1"]
[EndTime "9:30:22 PST"]
[Termination "ChainedDowntohell won by resignation"]

1. d4 {[%clk 0:02:59.3]} 1... Nf6 {[%clk 0:02:59.7]} 2. c4 {[%clk 0:02:58.9]}
2... g6 {[%clk 0:02:59.5]} 3. Nc3 {[%clk 0:02:58.9]} 3... Bg7 {[%clk 0:02:59.7]}
4. e4 {[%clk 0:02:59.3]} 4... d6 {[%clk 0:03:00]} 5. Be2 {[%clk 0:02:55.4]} 5...
O-O {[%clk 0:02:58.9]} 6. Be3 {[%clk 0:02:56]} 6... e5 {[%clk 0:02:57.7]} 7. d5
{[%clk 0:02:55.8]} 7... Na6 {[%clk 0:02:58]} 8. g4 {[%clk 0:02:47.5]} 8... Nc5
{[%clk 0:02:56]} 9. f3 {[%clk 0:02:36.8]} 9... a5 {[%clk 0:02:55.6]} 10. h4
{[%clk 0:02:34.7]} 10... h5 {[%clk 0:02:53.7]} 11. g5 {[%clk 0:02:24.7]} 11...
Nh7 {[%clk 0:02:52.7]} 12. Nh3 {[%clk 0:02:22.7]} 12... Bxh3 {[%clk 0:02:43.7]}
13. Rxh3 {[%clk 0:02:23.6]} 13... f6 {[%clk 0:02:43.9]} 14. Qd2 {[%clk
0:02:11.4]} 14... fxg5 {[%clk 0:02:41.7]} 15. O-O-O {[%clk 0:01:43.9]} 15... Rf4
{[%clk 0:02:24]} 16. Rg1 {[%clk 0:01:37.8]} 16... Qf6 {[%clk 0:01:51]} 17. Rhg3
{[%clk 0:01:26.6]} 17... Rxh4 {[%clk 0:01:43.9]} 18. Rxg5 {[%clk 0:01:23.9]}
18... Nf8 {[%clk 0:01:21.2]} 19. Nd1 {[%clk 0:00:56.1]} 19... Kh7 {[%clk
0:01:13.4]} 20. R5g2 {[%clk 0:00:46.8]} 20... a4 {[%clk 0:01:09]} 21. Kb1 {[%clk
0:00:42.5]} 21... b6 {[%clk 0:01:00.2]} 22. Bg5 {[%clk 0:00:41.9]} 1-0

[Event "Early-Titled-Tuesday-Blitz-February-13-2024"]
[Site "Chess.com"]
[Date "2024.02.13"]
[Round "8"]
[White "Agibileg"]
[Black "Irishchessman16"]
[Result "1-0"]
[WhiteElo "2721"]
[BlackElo "2528"]
[TimeControl "180+1"]
[EndTime "9:30:26 PST"]
[Termination "Agibileg won by resignation"]

1. d4 {[%clk 0:03:00.9]} 1... f5 {[%clk 0:02:58.2]} 2. c4 {[%clk 0:03:01.1]}
2... Nf6 {[%clk 0:02:57.5]} 3. g3 {[%clk 0:03:01.5]} 3... e6 {[%clk 0:02:56.1]}
4. Bg2 {[%clk 0:03:01.8]} 4... Be7 {[%clk 0:02:55.9]} 5. Nf3 {[%clk 0:03:02.2]}
5... O-O {[%clk 0:02:56.3]} 6. O-O {[%clk 0:03:02.4]} 6... d6 {[%clk 0:02:56]}
7. b3 {[%clk 0:02:59.9]} 7... Ne4 {[%clk 0:02:50.1]} 8. Bb2 {[%clk 0:02:59.9]}
8... Nc6 {[%clk 0:02:49.7]} 9. Nbd2 {[%clk 0:02:59.8]} 9... d5 {[%clk
0:02:45.3]} 10. Ne5 {[%clk 0:02:54.3]} 10... Nxe5 {[%clk 0:02:43.6]} 11. dxe5
{[%clk 0:02:53.6]} 11... c6 {[%clk 0:02:40]} 12. Nxe4 {[%clk 0:02:47.6]} 12...
fxe4 {[%clk 0:02:37.9]} 13. f3 {[%clk 0:02:46.1]} 13... Qb6+ {[%clk 0:02:01.4]}
14. Kh1 {[%clk 0:02:44]} 14... dxc4 {[%clk 0:01:57.1]} 15. f4 {[%clk 0:02:39]}
15... cxb3 {[%clk 0:01:42.8]} 16. axb3 {[%clk 0:02:39.9]} 16... e3 {[%clk
0:01:35.4]} 17. Be4 {[%clk 0:02:30.9]} 17... g6 {[%clk 0:01:23.1]} 18. Qc2
{[%clk 0:02:24.3]} 18... Rf7 {[%clk 0:01:19]} 19. Rad1 {[%clk 0:02:23.3]} 19...
Bc5 {[%clk 0:01:06.2]} 20. Rd6 {[%clk 0:02:21.4]} 20... Bd7 {[%clk 0:01:00.6]}
21. Rfd1 {[%clk 0:02:19.5]} 21... Rd8 {[%clk 0:00:51.5]} 22. Kg2 {[%clk
0:01:41.9]} 22... a5 {[%clk 0:00:23.4]} 23. h4 {[%clk 0:01:40.6]} 23... Bxd6
{[%clk 0:00:18.2]} 24. exd6 {[%clk 0:01:39.1]} 24... Rdf8 {[%clk 0:00:15.4]} 25.
Bxg6 {[%clk 0:01:34.6]} 25... Rg7 {[%clk 0:00:11.6]} 26. Bxh7+ {[%clk
0:01:33.2]} 1-0

[Event "Early-Titled-Tuesday-Blitz-February-13-2024"]
[Site "Chess.com"]
[Date "2024.02.13"]
[Round "8"]
[White "Elnaz_Kaliakhmet"]
[Black "blitzking1729"]
[Result "0-1"]
[WhiteElo "2366"]
[BlackElo "2718"]
[TimeControl "180+1"]
[EndTime "9:30:28 PST"]
[Termination "blitzking1729 won by resignation"]

1. d4 {[%clk 0:02:58.7]} 1... d5 {[%clk 0:02:58.5]} 2. c4 {[%clk 0:02:59.1]}
2... e6 {[%clk 0:02:56.1]} 3. Nf3 {[%clk 0:02:59.1]} 3... Nf6 {[%clk 0:02:56.4]}
4. Nc3 {[%clk 0:02:59.4]} 4... Nbd7 {[%clk 0:02:55.4]} 5. e3 {[%clk 0:02:58.6]}
5... Be7 {[%clk 0:02:50.3]} 6. Bd3 {[%clk 0:02:58.3]} 6... O-O {[%clk
0:02:50.3]} 7. O-O {[%clk 0:02:57.8]} 7... b6 {[%clk 0:02:50.4]} 8. e4 {[%clk
0:02:47.2]} 8... dxe4 {[%clk 0:02:39.3]} 9. Nxe4 {[%clk 0:02:46.3]} 9... Bb7
{[%clk 0:02:38.5]} 10. Qe2 {[%clk 0:02:32.2]} 10... c5 {[%clk 0:02:32.6]} 11.
Rd1 {[%clk 0:02:27.5]} 11... Qc7 {[%clk 0:02:28.9]} 12. Nxf6+ {[%clk 0:02:21.9]}
12... Nxf6 {[%clk 0:02:27.6]} 13. Ne5 {[%clk 0:02:22.2]} 13... cxd4 {[%clk
0:02:24.2]} 14. Bg5 {[%clk 0:02:18.9]} 14... h6 {[%clk 0:02:21.9]} 15. Bh4
{[%clk 0:02:05]} 15... Rad8 {[%clk 0:02:15.4]} 16. b3 {[%clk 0:01:40.7]} 16...
Rfe8 {[%clk 0:02:04.7]} 17. Re1 {[%clk 0:01:12.8]} 17... Nd7 {[%clk 0:02:00]}
18. Nxf7 {[%clk 0:00:43]} 18... Bxh4 {[%clk 0:01:57.5]} 19. Nxd8 {[%clk
0:00:38.4]} 19... Qxd8 {[%clk 0:01:55.2]} 20. Qg4 {[%clk 0:00:35.1]} 20... Nc5
{[%clk 0:01:53.4]} 21. Bg6 {[%clk 0:00:31.7]} 21... Rf8 {[%clk 0:01:50.6]} 22.
g3 {[%clk 0:00:27.8]} 22... Qg5 {[%clk 0:01:36]} 23. Qxh4 {[%clk 0:00:19.4]}
23... Qxg6 {[%clk 0:01:35.9]} 24. Qxd4 {[%clk 0:00:17.2]} 24... Nd3 {[%clk
0:01:33.7]} 25. Rf1 {[%clk 0:00:14.2]} 25... Nf4 {[%clk 0:01:33.6]} 26. h4
{[%clk 0:00:09.2]} 26... Ne2+ {[%clk 0:01:33.7]} 0-1

[Event "Early-Titled-Tuesday-Blitz-February-13-2024"]
[Site "Chess.com"]
[Date "2024.02.13"]
[Round "8"]
[White "Ready4abattle"]
[Black "Bugcrusher"]
[Result "0-1"]
[WhiteElo "2266"]
[BlackElo "2456"]
[TimeControl "180+1"]
[EndTime "9:30:38 PST"]
[Termination "Bugcrusher won by resignation"]

1. e4 {[%clk 0:03:00.9]} 1... c6 {[%clk 0:02:59.7]} 2. d4 {[%clk 0:03:00.5]}
2... d5 {[%clk 0:02:59.8]} 3. e5 {[%clk 0:03:00.4]} 3... c5 {[%clk 0:02:59.7]}
4. Nf3 {[%clk 0:03:00.3]} 4... cxd4 {[%clk 0:02:59.2]} 5. Nxd4 {[%clk 0:02:52]}
5... Nc6 {[%clk 0:02:59]} 6. Nxc6 {[%clk 0:02:52.2]} 6... bxc6 {[%clk
0:02:58.7]} 7. c4 {[%clk 0:02:53.1]} 7... e6 {[%clk 0:02:54.8]} 8. Nc3 {[%clk
0:02:53.1]} 8... Bc5 {[%clk 0:02:45.3]} 9. cxd5 {[%clk 0:02:30.1]} 9... cxd5
{[%clk 0:02:46.2]} 10. Bd3 {[%clk 0:02:23.8]} 10... Ne7 {[%clk 0:02:43.6]} 11.
O-O {[%clk 0:02:23.6]} 11... O-O {[%clk 0:02:41.9]} 12. Bg5 {[%clk 0:02:21.1]}
12... Rb8 {[%clk 0:02:38.9]} 13. Qh5 {[%clk 0:02:16.9]} 13... h6 {[%clk
0:02:23]} 14. Rad1 {[%clk 0:01:33.7]} 14... Qe8 {[%clk 0:01:59.3]} 15. Bc1
{[%clk 0:01:25.7]} 15... f5 {[%clk 0:01:52.2]} 16. Qxe8 {[%clk 0:01:22.1]} 16...
Rxe8 {[%clk 0:01:52.3]} 17. Rfe1 {[%clk 0:01:19.6]} 17... Bd7 {[%clk 0:01:51.4]}
18. Kf1 {[%clk 0:01:13.1]} 18... Nc6 {[%clk 0:01:47]} 19. h4 {[%clk 0:01:08.7]}
19... Bd4 {[%clk 0:01:44.3]} 20. f4 {[%clk 0:00:58.6]} 20... Bxc3 {[%clk
0:01:44.1]} 21. bxc3 {[%clk 0:00:58.8]} 21... Na5 {[%clk 0:01:41.3]} 22. Be3
{[%clk 0:00:54.3]} 22... Bb5 {[%clk 0:01:35.7]} 23. Bxa7 {[%clk 0:00:50]} 23...
Bxd3+ {[%clk 0:01:35.1]} 24. Rxd3 {[%clk 0:00:50.9]} 24... Ra8 {[%clk
0:01:35.8]} 25. Bc5 {[%clk 0:00:50.4]} 25... Nc4 {[%clk 0:01:35.8]} 26. Re2
{[%clk 0:00:48.1]} 26... Reb8 {[%clk 0:01:29.5]} 27. Bb4 {[%clk 0:00:48.4]}
27... Rb6 {[%clk 0:01:19.1]} 28. Kf2 {[%clk 0:00:48.2]} 28... Rba6 {[%clk
0:01:19.3]} 29. h5 {[%clk 0:00:39.4]} 29... Rxa2 {[%clk 0:01:18.2]} 30. Rxa2
{[%clk 0:00:38.5]} 30... Rxa2+ {[%clk 0:01:18.2]} 31. Kg3 {[%clk 0:00:38.7]}
31... g6 {[%clk 0:01:17.2]} 32. hxg6 {[%clk 0:00:38]} 32... Kg7 {[%clk
0:01:17.6]} 33. Rf3 {[%clk 0:00:36.3]} 33... Nd2 {[%clk 0:01:15]} 34. Re3 {[%clk
0:00:33.7]} 34... Nf1+ {[%clk 0:01:14.3]} 0-1

[Event "Early-Titled-Tuesday-Blitz-February-13-2024"]
[Site "Chess.com"]
[Date "2024.02.13"]
[Round "8"]
[White "AttackSparrow"]
[Black "Balla_Tamas"]
[Result "1-0"]
[WhiteElo "2622"]
[BlackElo "2414"]
[TimeControl "180+1"]
[EndTime "9:30:44 PST"]
[Termination "AttackSparrow won by resignation"]

1. Nf3 {[%clk 0:03:00.9]} 1... c5 {[%clk 0:03:00]} 2. e3 {[%clk 0:03:00.7]} 2...
Nc6 {[%clk 0:02:58.5]} 3. d4 {[%clk 0:03:01.6]} 3... cxd4 {[%clk 0:02:59.2]} 4.
exd4 {[%clk 0:03:02.3]} 4... d5 {[%clk 0:02:59.9]} 5. Bb5 {[%clk 0:03:02.5]}
5... Bg4 {[%clk 0:02:58.9]} 6. h3 {[%clk 0:03:01.2]} 6... Bh5 {[%clk 0:02:58]}
7. g4 {[%clk 0:03:00.9]} 7... Bg6 {[%clk 0:02:58.3]} 8. Ne5 {[%clk 0:02:59.9]}
8... Rc8 {[%clk 0:02:55]} 9. h4 {[%clk 0:02:59.7]} 9... h5 {[%clk 0:02:17.7]}
10. Nxg6 {[%clk 0:02:53.9]} 10... fxg6 {[%clk 0:02:17.9]} 11. Bd3 {[%clk
0:02:43.6]} 11... Qd6 {[%clk 0:02:09.7]} 12. Nc3 {[%clk 0:01:57.3]} 12... Nxd4
{[%clk 0:01:33.5]} 13. Be3 {[%clk 0:01:56.1]} 13... e5 {[%clk 0:01:27.7]} 14.
Bxd4 {[%clk 0:01:36.3]} 14... exd4 {[%clk 0:01:27.5]} 15. Nb5 {[%clk 0:01:37]}
15... Qe5+ {[%clk 0:01:13.4]} 16. Kf1 {[%clk 0:01:36.3]} 16... Ne7 {[%clk
0:01:01.6]} 17. Qf3 {[%clk 0:01:36.4]} 17... hxg4 {[%clk 0:00:55.8]} 18. Qxg4
{[%clk 0:01:37.3]} 18... Qf6 {[%clk 0:00:34.1]} 19. Re1 {[%clk 0:01:35.4]} 19...
Kf7 {[%clk 0:00:34]} 20. Rh3 {[%clk 0:01:16.3]} 20... Nf5 {[%clk 0:00:33.6]} 21.
h5 {[%clk 0:01:14.6]} 21... a6 {[%clk 0:00:27.3]} 22. hxg6+ {[%clk 0:01:06.6]}
22... Qxg6 {[%clk 0:00:17.3]} 23. Qxg6+ {[%clk 0:01:02.5]} 23... Kxg6 {[%clk
0:00:17.5]} 24. Rxh8 {[%clk 0:01:03.2]} 24... axb5 {[%clk 0:00:17.1]} 25. Re5
{[%clk 0:01:03.4]} 1-0

[Event "Early-Titled-Tuesday-Blitz-February-13-2024"]
[Site "Chess.com"]
[Date "2024.02.13"]
[Round "8"]
[White "NowInChess"]
[Black "AttilaTurzo"]
[Result "0-1"]
[WhiteElo "2320"]
[BlackElo "2480"]
[TimeControl "180+1"]
[EndTime "9:30:44 PST"]
[Termination "AttilaTurzo won by checkmate"]

1. e4 {[%clk 0:02:59.3]} 1... c5 {[%clk 0:03:00.2]} 2. d3 {[%clk 0:02:59.2]}
2... d6 {[%clk 0:02:55]} 3. g3 {[%clk 0:02:59.3]} 3... g6 {[%clk 0:02:55.2]} 4.
Bg2 {[%clk 0:02:59.9]} 4... Bg7 {[%clk 0:02:55.8]} 5. f4 {[%clk 0:03:00.5]} 5...
Nc6 {[%clk 0:02:53.7]} 6. Nf3 {[%clk 0:03:00.9]} 6... Bg4 {[%clk 0:02:53.1]} 7.
h3 {[%clk 0:03:00.6]} 7... Bxf3 {[%clk 0:02:52.9]} 8. Qxf3 {[%clk 0:03:01.5]}
8... Nf6 {[%clk 0:02:52.7]} 9. O-O {[%clk 0:03:01.3]} 9... O-O {[%clk
0:02:53.2]} 10. Be3 {[%clk 0:02:59.4]} 10... Rb8 {[%clk 0:02:52.9]} 11. Qf2
{[%clk 0:02:53.3]} 11... Nd7 {[%clk 0:02:46.2]} 12. c3 {[%clk 0:02:52.9]} 12...
b5 {[%clk 0:02:45.8]} 13. Nd2 {[%clk 0:02:37.1]} 13... b4 {[%clk 0:02:44.8]} 14.
e5 {[%clk 0:02:37.2]} 14... Qc7 {[%clk 0:02:39]} 15. d4 {[%clk 0:02:35.9]} 15...
bxc3 {[%clk 0:02:34.5]} 16. bxc3 {[%clk 0:02:35.7]} 16... Rb2 {[%clk 0:02:14.8]}
17. Qf3 {[%clk 0:02:33.7]} 17... Nxd4 {[%clk 0:02:01]} 18. cxd4 {[%clk
0:02:21.1]} 18... cxd4 {[%clk 0:02:01]} 19. Rac1 {[%clk 0:02:09.6]} 19... Rc2
{[%clk 0:01:35.3]} 20. Nb3 {[%clk 0:01:50.4]} 20... dxe3 {[%clk 0:01:31.8]} 21.
Qxe3 {[%clk 0:01:51.3]} 21... dxe5 {[%clk 0:01:29.1]} 22. fxe5 {[%clk 0:01:49]}
22... Nxe5 {[%clk 0:01:23.7]} 23. Rxc2 {[%clk 0:01:48.8]} 23... Qxc2 {[%clk
0:01:23.2]} 24. Qxa7 {[%clk 0:01:46.9]} 24... Nc4 {[%clk 0:01:07.5]} 25. Qxe7
{[%clk 0:01:26.7]} 25... Qxa2 {[%clk 0:01:03.3]} 26. Nc5 {[%clk 0:01:18.7]}
26... Bd4+ {[%clk 0:00:48.4]} 27. Kh1 {[%clk 0:01:13.3]} 27... Ne3 {[%clk
0:00:43.7]} 28. Be4 {[%clk 0:00:55.4]} 28... Nxf1 {[%clk 0:00:38.4]} 29. Nd7
{[%clk 0:00:50.4]} 29... Nxg3# {[%clk 0:00:37.9]} 0-1